[Event "Latvijas 2022. gada jauniešu čempionāta fināls"]
[Site "Riga, Latvia"]
[Date "2022.06.14"]
[Round "5.17"]
[White "Derbenev, Arseniy"]
[Black "Gaidis, Edvards"]
[Result "1/2-1/2"]
[TimeControl "3600+30"]
[WhiteElo "1477"]
[BlackElo "1190"]

1. e4 {[%clk 01:00:58]} c6 {[%clk 01:00:53]} {[%emt 00:00:08]} 2. d4 {[%clk
01:01:24]} {[%emt 00:00:04]} d5 {[%clk 01:01:17]} {[%emt 00:00:06]} 3. f3
{[%clk 01:01:35]} {[%emt 00:00:19]} dxe4 {[%clk 01:01:16]} {[%emt 00:00:30]} 4.
fxe4 {[%clk 01:02:01]} {[%emt 00:00:05]} e5 {[%clk 01:01:38]} {[%emt 00:00:07]}
5. Nf3 {[%clk 01:01:53]} {[%emt 00:00:38]} Bg4 {[%clk 01:01:45]} {[%emt
00:00:21]} 6. d5 {[%clk 00:57:10]} {[%emt 00:05:16]} cxd5 {[%clk 01:01:08]}
{[%emt 00:01:05]} 7. Qxd5 {[%clk 00:57:10]} {[%emt 00:00:32]} Qxd5 {[%clk
01:01:17]} {[%emt 00:00:19]} 8. exd5 {[%clk 00:57:34]} {[%emt 00:00:07]} Bxf3
{[%clk 01:01:40]} {[%emt 00:00:06]} 9. gxf3 {[%clk 00:58:01]} {[%emt 00:00:05]}
Nd7 {[%clk 01:01:54]} {[%emt 00:00:16]} 10. Bh3 {[%clk 00:55:55]} {[%emt
00:02:35]} Ngf6 {[%clk 01:01:39]} {[%emt 00:00:44]} 11. c4 {[%clk 00:55:44]}
{[%emt 00:00:43]} Bc5 {[%clk 01:01:28]} {[%emt 00:00:37]} 12. Bd2 {[%clk
00:54:28]} {[%emt 00:01:49]} Nb6 {[%clk 01:01:41]} {[%emt 00:00:16]} 13. b3
{[%clk 00:54:29]} {[%emt 00:00:29]} O-O {[%clk 01:01:05]} {[%emt 00:01:07]} 14.
Nc3 {[%clk 00:53:36]} {[%emt 00:01:23]} Bd4 {[%clk 01:01:14]} {[%emt 00:00:21]}
15. O-O-O {[%clk 00:53:13]} {[%emt 00:00:54]} Nbd7 {[%clk 00:56:25]} {[%emt
00:05:18]} 16. Kc2 {[%clk 00:48:51]} {[%emt 00:04:53]} a6 {[%clk 00:56:01]}
{[%emt 00:00:54]} 17. a4 {[%clk 00:45:11]} {[%emt 00:04:10]} Rac8 {[%clk
00:55:53]} {[%emt 00:00:37]} 18. Bg5 {[%emt 00:04:50]} Rc7 {[%clk 00:55:42]} 19.
Bxd7 {[%clk 00:40:59]} {[%emt 00:01:03]} Nxd7 {[%clk 00:55:56]} {[%emt
00:00:14]} 20. d6 {[%clk 00:40:48]} {[%emt 00:00:42]} Rc6 {[%clk 00:55:59]}
{[%emt 00:00:27]} 21. Nd5 {[%clk 00:39:45]} {[%emt 00:01:33]} Kh8 {[%clk
00:55:15]} {[%emt 00:01:12]} 22. Be7 {[%clk 00:39:00]} {[%emt 00:01:17]} Rfc8
{[%clk 00:55:18]} {[%emt 00:00:24]} 23. Nb4 {[%clk 00:39:04]} {[%emt 00:00:26]}
Rc5 {[%clk 00:53:13]} {[%emt 00:02:37]} 24. Nd3 {[%clk 00:38:59]} {[%emt
00:00:37]} R5c6 {[%clk 00:53:32]} {[%emt 00:00:11]} 1/2-1/2

[Event "Latvijas 2022. gada jauniešu čempionāta fināls"]
[Site "Riga, Latvia"]
[Date "2022.06.14"]
[Round "5.18"]
[White "Nazarovs, Daniils"]
[Black "Steiners, Emils"]
[Result "0-1"]
[TimeControl "3600+30"]
[WhiteElo "1245"]
[BlackElo "1601"]

1. e4 {[%clk 01:00:49]} {[%emt 00:00:11]} c5 {[%clk 01:00:56]} {[%emt
00:00:04]} 2. Nf3 {[%clk 01:01:13]} {[%emt 00:00:06]} e6 {[%clk 01:01:20]}
{[%emt 00:00:06]} 3. d4 {[%clk 01:01:34]} {[%emt 00:00:09]} cxd4 {[%emt
00:00:08]} 4. Nxd4 {[%clk 01:02:00]} {[%emt 00:00:04]} Nc6 {[%clk 01:01:59]}
{[%emt 00:00:13]} 5. Be3 {[%clk 01:01:29]} {[%emt 00:01:01]} Qc7 {[%clk
01:02:10]} {[%emt 00:00:19]} 6. a3 {[%clk 01:00:20]} {[%emt 00:01:40]} a6
{[%clk 01:02:31]} {[%emt 00:00:09]} 7. Be2 {[%clk 01:00:02]} {[%emt 00:00:47]}
Nf6 {[%clk 01:01:03]} {[%emt 00:01:58]} 8. Nc3 {[%clk 00:58:48]} {[%emt
00:01:44]} Be7 {[%clk 01:01:08]} {[%emt 00:00:25]} 9. Qd2 {[%clk 00:57:48]}
{[%emt 00:01:30]} O-O {[%clk 00:59:46]} {[%emt 00:01:51]} 10. g4 {[%clk
00:57:23]} {[%emt 00:00:55]} d6 {[%clk 00:58:21]} {[%emt 00:01:55]} 11. f3
{[%clk 00:55:05]} {[%emt 00:02:49]} Rd8 {[%clk 00:52:08]} {[%emt 00:06:42]} 12.
g5 {[%clk 00:52:25]} {[%emt 00:03:10]} Ne8 {[%clk 00:48:54]} {[%emt 00:03:32]}
13. f4 {[%clk 00:52:10]} {[%emt 00:00:57]} Nxd4 {[%clk 00:47:56]} {[%emt
00:01:28]} 14. Bxd4 {[%clk 00:52:23]} {[%emt 00:00:18]} b5 {[%clk 00:45:54]}
{[%emt 00:02:32]} 15. f5 {[%clk 00:50:25]} {[%emt 00:02:28]} d5 {[%clk
00:40:23]} {[%emt 00:06:00]} 16. f6 {[%clk 00:49:35]} {[%emt 00:01:20]} Bd6
{[%clk 00:34:08]} {[%emt 00:06:45]} 17. Qe3 {[%clk 00:48:47]} {[%emt 00:01:18]}
Bf4 {[%clk 00:33:43]} {[%emt 00:00:56]} 18. Qf2 {[%clk 00:46:49]} {[%emt
00:02:20]} Rb8 {[%clk 00:32:12]} {[%emt 00:02:08]} 19. exd5 {[%clk 00:43:01]}
{[%emt 00:04:18]} exd5 {[%clk 00:28:57]} {[%emt 00:03:46]} 20. Bd3 {[%clk
00:40:41]} {[%emt 00:02:49]} g6 {[%clk 00:26:28]} {[%emt 00:03:00]} 21. Qh4
{[%clk 00:38:34]} {[%emt 00:02:36]} b4 {[%clk 00:17:35]} {[%emt 00:09:23]} 22.
Ne2 {[%clk 00:37:52]} {[%emt 00:01:12]} Bd6 {[%clk 00:16:01]} {[%emt 00:02:04]}
23. Qf2 {[%clk 00:36:01]} {[%emt 00:02:21]} bxa3 {[%clk 00:15:15]} {[%emt
00:01:16]} 24. bxa3 {[%clk 00:36:03]} {[%emt 00:00:28]} Bxa3 {[%clk 00:11:33]}
{[%emt 00:04:11]} 25. h4 {[%clk 00:36:11]} {[%emt 00:00:23]} Bg4 {[%clk
00:09:41]} {[%emt 00:02:22]} 26. Qg2 {[%clk 00:35:19]} {[%emt 00:01:22]} Bb4+
{[%clk 00:09:55]} {[%emt 00:00:15]} 27. Kf1 {[%clk 00:33:16]} {[%emt 00:02:34]}
Bxe2+ {[%clk 00:09:44]} {[%emt 00:00:40]} 28. Qxe2 {[%clk 00:32:49]} {[%emt
00:00:57]} Qf4+ {[%clk 00:09:09]} {[%emt 00:01:04]} 29. Bf2 {[%clk 00:33:12]}
{[%emt 00:00:09]} Nd6 {[%clk 00:07:27]} {[%emt 00:02:12]} 30. Kg2 {[%clk
00:31:49]} {[%emt 00:01:52]} Re8 {[%clk 00:05:14]} {[%emt 00:02:43]} 31. Qd1
{[%clk 00:31:37]} {[%emt 00:00:28]} Ne4 {[%clk 00:04:29]} {[%emt 00:01:30]} 32.
Bxe4 {[%clk 00:31:27]} {[%emt 00:00:40]} Qxe4+ {[%clk 00:04:14]} {[%emt
00:00:45]} 33. Kg1 {[%clk 00:28:50]} {[%emt 00:03:00]} Bc3 {[%clk 00:02:29]}
{[%emt 00:02:22]} 34. Rxa6 {[%clk 00:27:49]} {[%emt 00:01:30]} Rb2 {[%clk
00:02:17]} {[%emt 00:00:42]} 35. Rh3 {[%clk 00:26:59]} {[%emt 00:01:17]} Qc4
{[%clk 00:00:55]} {[%emt 00:01:54]} 36. Re3 {[%clk 00:26:19]} {[%emt 00:01:12]}
Reb8 {[%clk 00:00:42]} {[%emt 00:00:43]} 37. Ra1 {[%clk 00:25:43]} {[%emt
00:01:06]} Bd4 {[%clk 00:00:39]} {[%emt 00:00:33]} 38. Re2 {[%clk 00:24:17]}
{[%emt 00:01:55]} Bxf2+ {[%clk 00:00:59]} {[%emt 00:00:10]} 39. Rxf2 {[%clk
00:23:41]} {[%emt 00:01:06]} h5 {[%clk 00:00:40]} {[%emt 00:00:49]} 40. Rd2
{[%clk 00:22:42]} {[%emt 00:01:29]} Qxh4 {[%clk 00:00:36]} {[%emt 00:00:35]} 41.
Rxd5 {[%clk 00:22:30]} {[%emt 00:00:42]} Qg3+ {[%clk 00:00:51]} {[%emt
00:00:15]} 42. Kf1 {[%clk 00:21:45]} {[%emt 00:01:08]} R2b4 {[%clk 00:00:40]}
{[%emt 00:00:48]} 43. c4 {[%clk 00:11:04]} {[%emt 00:11:10]} Rxc4 {[%clk
00:00:38]} {[%emt 00:00:32]} 44. Rd4 {[%clk 00:10:31]} {[%emt 00:01:03]} Qh3+
{[%clk 00:00:47]} {[%emt 00:00:21]} 45. Ke2 {[%clk 00:08:07]} {[%emt 00:02:51]}
Rb2+ {[%clk 00:01:00]} {[%emt 00:00:20]} 46. Rd2 {[%clk 00:08:30]} {[%emt
00:00:07]} Re4+ {[%clk 00:00:59]} {[%emt 00:00:32]} 47. Kf2 {[%clk 00:08:43]}
{[%emt 00:00:16]} Qe3+ {[%clk 00:01:17]} {[%emt 00:00:12]} 0-1

[Event "Latvijas 2022. gada jauniešu čempionāta fināls"]
[Site "Riga, Latvia"]
[Date "2022.06.14"]
[Round "5.19"]
[White "Varpins, Kristians"]
[Black "Savicevs, Arsenijs"]
[Result "0-1"]
[TimeControl "3600+30"]
[WhiteElo "1374"]
[BlackElo "1961"]

1. e4 {[%clk 01:00:57]} {[%emt 00:00:02]} c5 {[%clk 01:00:56]} {[%emt
00:00:04]} 2. Nf3 {[%clk 01:01:20]} {[%emt 00:00:08]} e6 {[%clk 01:01:19]}
{[%emt 00:00:07]} 3. d4 {[%clk 01:01:45]} {[%emt 00:00:05]} cxd4 {[%clk
01:01:43]} {[%emt 00:00:06]} 4. Nxd4 {[%clk 01:02:09]} {[%emt 00:00:06]} Nf6
{[%clk 01:02:06]} {[%emt 00:00:06]} 5. Nc3 {[%clk 01:02:33]} {[%emt 00:00:08]}
Nc6 {[%clk 01:02:29]} {[%emt 00:00:05]} 6. Ndb5 {[%clk 01:02:42]} {[%emt
00:00:22]} Bb4 {[%clk 01:02:49]} {[%emt 00:00:10]} 7. a3 {[%clk 01:03:01]}
{[%emt 00:00:11]} Bxc3+ {[%clk 01:03:13]} {[%emt 00:00:06]} 8. Nxc3 {[%clk
01:03:19]} {[%emt 00:00:13]} d5 {[%clk 01:03:36]} {[%emt 00:00:06]} 9. exd5
{[%clk 01:03:35]} {[%emt 00:00:14]} exd5 {[%clk 01:04:02]} {[%emt 00:00:03]} 10.
Bd3 {[%clk 01:03:17]} {[%emt 00:00:48]} O-O {[%clk 01:04:22]} {[%emt 00:00:11]}
11. O-O {[%clk 01:03:31]} {[%emt 00:00:17]} d4 {[%clk 01:04:44]} {[%emt
00:00:07]} 12. Ne2 {[%clk 01:03:38]} {[%emt 00:00:23]} Re8 {[%clk 01:04:53]}
{[%emt 00:00:20]} 13. Bg5 {[%clk 01:00:08]} {[%emt 00:04:01]} h6 {[%clk
01:03:24]} {[%emt 00:01:59]} 14. Bh4 {[%clk 00:57:36]} {[%emt 00:03:02]} Qd6
{[%clk 01:03:13]} {[%emt 00:00:41]} 15. Bg3 {[%clk 00:53:24]} {[%emt 00:04:42]}
Qc5 {[%clk 01:02:14]} {[%emt 00:01:28]} 16. Qd2 {[%clk 00:40:32]} {[%emt
00:13:22]} Ne4 {[%clk 00:56:53]} {[%emt 00:05:52]} 17. Qc1 {[%clk 00:36:27]}
{[%emt 00:04:35]} Bf5 {[%clk 00:54:08]} {[%emt 00:03:15]} 18. Bf4 {[%clk
00:31:17]} {[%emt 00:05:39]} Nf6 {[%clk 00:42:27]} {[%emt 00:12:12]} 19. Bxf5
{[%clk 00:27:14]} {[%emt 00:04:33]} Qxf5 {[%clk 00:42:32]} {[%emt 00:00:24]} 20.
Ng3 {[%clk 00:26:56]} {[%emt 00:00:48]} Qc5 {[%clk 00:42:32]} {[%emt 00:00:30]}
21. Qd1 {[%clk 00:21:50]} {[%emt 00:05:35]} Nd5 {[%clk 00:41:26]} {[%emt
00:01:36]} 22. Bd2 {[%clk 00:16:59]} {[%emt 00:05:23]} Ne5 {[%clk 00:37:55]}
{[%emt 00:03:59]} 23. Ne2 {[%clk 00:09:18]} {[%emt 00:08:12]} Qc4 {[%clk
00:30:56]} {[%emt 00:07:30]} 24. b3 {[%clk 00:03:31]} {[%emt 00:06:18]} Nf3+
{[%clk 00:30:39]} {[%emt 00:00:46]} 25. gxf3 {[%clk 00:03:37]} {[%emt
00:00:24]} Qxe2 {[%clk 00:31:00]} {[%emt 00:00:08]} 26. Qxe2 {[%clk 00:03:27]}
{[%emt 00:00:42]} Rxe2 {[%clk 00:31:26]} {[%emt 00:00:03]} 27. Rfd1 {[%clk
00:03:22]} {[%emt 00:00:35]} Rc8 {[%clk 00:30:04]} {[%emt 00:01:52]} 28. Kf1
{[%clk 00:02:22]} {[%emt 00:01:30]} Re5 {[%clk 00:27:38]} {[%emt 00:02:55]} 29.
Ra2 {[%clk 00:00:56]} {[%emt 00:01:57]} Rh5 {[%clk 00:25:22]} {[%emt 00:02:44]}
30. Kg2 {[%clk 00:00:36]} {[%emt 00:00:51]} Rc6 {[%clk 00:24:45]} {[%emt
00:01:07]} 31. Re1 {[%clk 00:00:37]} {[%emt 00:00:30]} Rg6+ {[%clk 00:24:45]}
{[%emt 00:00:29]} 32. Kh1 {[%clk 00:00:49]} {[%emt 00:00:18]} Rf5 {[%clk
00:24:49]} {[%emt 00:00:27]} 33. f4 {[%clk 00:00:35]} {[%emt 00:00:44]} Nxf4
{[%clk 00:24:22]} {[%emt 00:00:56]} 34. Bxf4 {[%clk 00:00:49]} {[%emt
00:00:17]} Rxf4 {[%clk 00:24:49]} {[%emt 00:00:03]} 35. Re2 {[%clk 00:01:05]}
{[%emt 00:00:14]} Re6 {[%clk 00:24:57]} {[%emt 00:00:22]} 36. Rxe6 {[%clk
00:00:32]} {[%emt 00:01:04]} fxe6 {[%clk 00:25:18]} {[%emt 00:00:08]} 37. Kg2
{[%clk 00:00:49]} {[%emt 00:00:12]} e5 {[%clk 00:20:31]} {[%emt 00:05:19]} 38.
c3 {[%clk 00:00:36]} {[%emt 00:00:43]} Kf7 {[%clk 00:14:44]} {[%emt 00:06:16]}
39. cxd4 {[%clk 00:00:33]} {[%emt 00:00:33]} exd4 {[%clk 00:14:37]} {[%emt
00:00:37]} 40. Rd2 {[%clk 00:00:32]} {[%emt 00:00:31]} Ke6 {[%clk 00:14:58]}
{[%emt 00:00:09]} 41. f3 {[%clk 00:00:39]} {[%emt 00:00:23]} g5 {[%clk
00:15:09]} {[%emt 00:00:18]} 42. a4 {[%clk 00:00:32]} {[%emt 00:00:38]} a5
{[%clk 00:14:49]} {[%emt 00:00:50]} 43. Kg3 {[%clk 00:00:33]} {[%emt 00:00:29]}
Kd5 {[%clk 00:14:55]} {[%emt 00:00:23]} 44. Rd3 {[%clk 00:00:33]} {[%emt
00:00:31]} Rf7 {[%clk 00:15:03]} {[%emt 00:00:20]} 45. h4 {[%clk 00:00:35]}
{[%emt 00:00:30]} gxh4+ {[%clk 00:15:12]} {[%emt 00:00:22]} 46. Kxh4 {[%clk
00:01:00]} {[%emt 00:00:05]} Re7 {[%clk 00:15:30]} {[%emt 00:00:10]} 47. Kg3
{[%clk 00:00:32]} {[%emt 00:01:00]} Re3 {[%clk 00:15:45]} {[%emt 00:00:14]} 48.
Rxe3 {[%emt 00:00:32]} 0-1

[Event "Latvijas 2022. gada jauniešu čempionāta fināls"]
[Site "Riga, Latvia"]
[Date "2022.06.14"]
[Round "5.20"]
[White "Freibergs, Filips"]
[Black "Karasevics, Aleksandrs"]
[Result "1/2-1/2"]
[TimeControl "3600+30"]
[WhiteElo "1250"]
[BlackElo "1427"]

1. d4 {[%clk 01:00:57]} {[%emt 00:00:02]} Nf6 {[%clk 01:00:41]} {[%emt
00:00:20]} 2. Nf3 {[%clk 01:01:18]} {[%emt 00:00:08]} g6 {[%clk 01:00:51]}
{[%emt 00:00:21]} 3. e3 {[%clk 01:01:35]} {[%emt 00:00:12]} Bg7 {[%clk
01:01:08]} {[%emt 00:00:14]} 4. Nbd2 {[%clk 01:01:12]} {[%emt 00:00:53]} O-O
{[%clk 01:01:22]} {[%emt 00:00:15]} 5. Be2 {[%clk 01:01:18]} {[%emt 00:00:24]}
d6 {[%clk 01:01:34]} {[%emt 00:00:18]} 6. b3 {[%clk 01:01:35]} {[%emt
00:00:13]} c5 {[%clk 01:01:53]} {[%emt 00:00:12]} 7. Bb2 {[%clk 01:01:48]}
{[%emt 00:00:17]} cxd4 {[%clk 01:02:14]} {[%emt 00:00:10]} 8. exd4 {[%clk
01:02:13]} {[%emt 00:00:04]} Nd5 {[%clk 01:02:24]} {[%emt 00:00:20]} 9. O-O
{[%clk 01:02:05]} {[%emt 00:00:38]} Nf4 {[%clk 01:02:23]} {[%emt 00:00:31]} 10.
Re1 {[%clk 01:01:40]} {[%emt 00:00:55]} Nxe2+ {[%clk 01:01:56]} {[%emt
00:00:57]} 11. Qxe2 {[%clk 01:02:07]} {[%emt 00:00:03]} Nc6 {[%emt 00:00:19]}
12. Nc4 {[%clk 01:00:05]} {[%emt 00:02:29]} Bg4 {[%clk 00:58:36]} {[%emt
00:04:04]} 13. c3 {[%clk 00:59:57]} {[%emt 00:00:39]} Kh8 {[%clk 00:55:14]}
{[%emt 00:03:51]} 14. h3 {[%clk 00:58:37]} {[%emt 00:01:50]} Bxf3 {[%clk
00:54:33]} {[%emt 00:01:11]} 15. Qxf3 {[%clk 00:59:03]} {[%emt 00:00:04]} Qc7
{[%clk 00:54:45]} {[%emt 00:00:18]} 16. g3 {[%clk 00:57:02]} {[%emt 00:02:31]}
Rad8 {[%clk 00:54:05]} {[%emt 00:01:09]} 17. Kg2 {[%clk 00:56:39]} {[%emt
00:00:54]} e5 {[%clk 00:53:14]} {[%emt 00:01:21]} 18. h4 {[%clk 00:54:21]}
{[%emt 00:02:48]} e4 {[%clk 00:52:34]} {[%emt 00:01:09]} 19. Qf4 {[%clk
00:53:58]} {[%emt 00:00:53]} f5 {[%clk 00:52:39]} {[%emt 00:00:25]} 20. h5
{[%clk 00:53:03]} {[%emt 00:01:25]} Qe7 {[%clk 00:52:00]} {[%emt 00:01:09]} 21.
hxg6 {[%clk 00:49:01]} {[%emt 00:04:33]} hxg6 {[%clk 00:52:22]} {[%emt
00:00:09]} 22. Ba3 {[%clk 00:46:44]} {[%emt 00:02:47]} g5 {[%clk 00:51:37]}
{[%emt 00:01:14]} 23. Qe3 {[%clk 00:45:44]} {[%emt 00:01:21]} Bh6 {[%clk
00:44:58]} {[%emt 00:07:17]} 24. Rh1 {[%clk 00:44:40]} {[%emt 00:01:34]} Kg7
{[%clk 00:45:08]} {[%emt 00:00:21]} 25. d5 {[%clk 00:38:11]} {[%emt 00:06:59]}
Ne5 {[%clk 00:35:17]} {[%emt 00:10:21]} 26. Qd4 {[%clk 00:35:46]} {[%emt
00:02:54]} Rfe8 {[%clk 00:33:56]} {[%emt 00:01:52]} 27. Ne3 {[%clk 00:31:45]}
{[%emt 00:04:30]} Qf6 {[%clk 00:31:47]} {[%emt 00:02:41]} 28. g4 {[%clk
00:22:13]} {[%emt 00:10:01]} fxg4 {[%clk 00:29:24]} {[%emt 00:02:53]} 29. Qxe4
{[%clk 00:18:10]} {[%emt 00:04:33]} Qf3+ {[%clk 00:28:51]} {[%emt 00:01:03]} 30.
Qxf3 {[%clk 00:18:37]} {[%emt 00:00:03]} gxf3+ {[%clk 00:29:13]} {[%emt
00:00:09]} 31. Kg3 {[%clk 00:18:45]} {[%emt 00:00:17]} Kg6 {[%clk 00:28:17]}
{[%emt 00:01:31]} 32. Bxd6 {[%clk 00:18:41]} {[%emt 00:00:34]} Bg7 {[%clk
00:27:01]} {[%emt 00:01:45]} 33. Bc5 {[%clk 00:14:49]} {[%emt 00:04:22]} b6
{[%clk 00:19:25]} {[%emt 00:08:05]} 34. Bd4 {[%clk 00:14:51]} {[%emt 00:00:27]}
Rf8 {[%clk 00:19:12]} {[%emt 00:00:45]} 35. Rad1 {[%clk 00:12:27]} {[%emt
00:02:50]} Rd7 {[%clk 00:18:13]} {[%emt 00:01:33]} 36. Ng4 {[%clk 00:11:46]}
{[%emt 00:01:11]} Rxd5 {[%clk 00:12:06]} {[%emt 00:06:37]} 37. Bxe5 {[%clk
00:09:47]} {[%emt 00:02:29]} Bxe5+ {[%clk 00:12:20]} {[%emt 00:00:16]} 38.
Nxe5+ {[%clk 00:10:14]} {[%emt 00:00:03]} Rxe5 {[%clk 00:12:36]} {[%emt
00:00:14]} 39. Rd6+ {[%clk 00:10:15]} {[%emt 00:00:29]} Kf5 {[%clk 00:11:31]}
{[%emt 00:01:35]} 40. Kxf3 {[%clk 00:10:24]} {[%emt 00:00:20]} g4+ {[%clk
00:10:05]} {[%emt 00:01:57]} 41. Kg3 {[%clk 00:10:44]} {[%emt 00:00:04]} Kg5
{[%clk 00:10:12]} {[%emt 00:00:29]} 42. c4 {[%clk 00:03:31]} {[%emt 00:07:44]}
Rf3+ {[%clk 00:10:03]} {[%emt 00:00:38]} 43. Kg2 {[%clk 00:03:59]} {[%emt
00:00:02]} Re2 {[%clk 00:09:23]} {[%emt 00:01:11]} 44. Rd5+ {[%emt 00:02:16]}
1/2-1/2

[Event "Latvijas 2022. gada jauniešu čempionāta fināls"]
[Site "Riga, Latvia"]
[Date "2022.06.14"]
[Round "5.21"]
[White "Otrohovs, Maksims"]
[Black "Adamovics, Aleksejs"]
[Result "0-1"]
[TimeControl "3600+30"]
[WhiteElo "1098"]
[BlackElo "1922"]

1. Nf3 {[%clk 01:00:51]} {[%emt 00:00:09]} Nf6 {[%clk 01:00:29]} {[%emt
00:00:31]} 2. g3 {[%clk 01:01:14]} {[%emt 00:00:08]} g6 {[%clk 01:00:44]}
{[%emt 00:00:14]} 3. Bg2 {[%clk 01:01:39]} {[%emt 00:00:05]} Bg7 {[%clk
01:01:12]} {[%emt 00:00:02]} 4. O-O {[%clk 01:01:57]} {[%emt 00:00:12]} O-O
{[%clk 01:01:26]} {[%emt 00:00:16]} 5. d4 {[%clk 01:02:22]} {[%emt 00:00:05]}
d6 {[%clk 01:00:42]} {[%emt 00:01:14]} 6. Re1 {[%clk 01:02:41]} {[%emt
00:00:12]} Nbd7 {[%clk 01:01:03]} {[%emt 00:00:08]} 7. e4 {[%clk 01:02:47]}
{[%emt 00:00:24]} e5 {[%clk 01:00:35]} {[%emt 00:00:58]} 8. Nc3 {[%clk
01:02:48]} {[%emt 00:00:29]} c6 {[%clk 00:59:09]} {[%emt 00:01:55]} 9. a4
{[%clk 00:55:01]} {[%emt 00:08:18]} Qc7 {[%clk 00:56:29]} {[%emt 00:03:09]} 10.
b3 {[%clk 00:52:59]} {[%emt 00:02:33]} a5 {[%clk 00:51:12]} {[%emt 00:05:47]}
11. d5 {[%clk 00:46:25]} {[%emt 00:07:04]} Rd8 {[%clk 00:47:28]} {[%emt
00:04:13]} 12. Ba3 {[%clk 00:43:10]} {[%emt 00:03:46]} Nb6 {[%clk 00:46:48]}
{[%emt 00:01:10]} 13. h3 {[%clk 00:37:00]} {[%emt 00:06:41]} h6 {[%clk
00:44:48]} {[%emt 00:02:29]} 14. Nd2 {[%clk 00:35:03]} {[%emt 00:02:27]} Bd7
{[%clk 00:40:30]} {[%emt 00:04:47]} 15. dxc6 {[%clk 00:33:15]} {[%emt
00:02:19]} bxc6 {[%clk 00:40:24]} {[%emt 00:00:36]} 16. Nc4 {[%clk 00:32:14]}
{[%emt 00:01:31]} Nxc4 {[%clk 00:40:36]} {[%emt 00:00:19]} 17. bxc4 {[%clk
00:32:40]} {[%emt 00:00:04]} Be6 {[%clk 00:38:16]} {[%emt 00:02:48]} 18. Qe2
{[%clk 00:32:20]} {[%emt 00:00:51]} Rab8 {[%clk 00:31:21]} {[%emt 00:07:25]} 19.
Rab1 {[%clk 00:30:53]} {[%emt 00:01:57]} Nd7 {[%clk 00:28:40]} {[%emt
00:03:11]} 20. Rxb8 {[%clk 00:27:18]} {[%emt 00:04:05]} Qxb8 {[%clk 00:27:21]}
{[%emt 00:01:47]} 21. Rb1 {[%clk 00:27:05]} {[%emt 00:00:45]} Qc7 {[%clk
00:27:42]} {[%emt 00:00:07]} 22. g4 {[%clk 00:25:30]} {[%emt 00:02:07]} Kh7
{[%clk 00:24:15]} {[%emt 00:03:56]} 23. Nd1 {[%clk 00:24:38]} {[%emt 00:01:22]}
Nb6 {[%clk 00:20:13]} {[%emt 00:04:33]} 24. Ne3 {[%clk 00:22:06]} {[%emt
00:03:02]} Nxa4 {[%clk 00:19:25]} {[%emt 00:01:18]} 25. Qd2 {[%clk 00:22:02]}
{[%emt 00:00:34]} Nc5 {[%clk 00:18:13]} {[%emt 00:01:41]} 26. h4 {[%clk
00:19:56]} {[%emt 00:02:38]} Bf8 {[%clk 00:14:45]} {[%emt 00:03:57]} 27. h5
{[%clk 00:19:52]} {[%emt 00:00:33]} Be7 {[%clk 00:13:58]} {[%emt 00:01:17]} 28.
hxg6+ {[%clk 00:18:35]} {[%emt 00:01:48]} fxg6 {[%clk 00:14:02]} {[%emt
00:00:26]} 29. Bf3 {[%clk 00:17:29]} {[%emt 00:01:36]} Bg5 {[%clk 00:13:19]}
{[%emt 00:01:14]} 30. Rd1 {[%clk 00:16:59]} {[%emt 00:00:59]} Qf7 {[%clk
00:12:19]} {[%emt 00:01:29]} 31. Kg2 {[%clk 00:16:33]} {[%emt 00:00:57]} Rf8
{[%clk 00:11:44]} {[%emt 00:01:05]} 32. Qe2 {[%clk 00:13:27]} {[%emt 00:03:36]}
Qc7 {[%clk 00:09:47]} {[%emt 00:02:27]} 33. Rh1 {[%clk 00:12:05]} {[%emt
00:01:52]} Bg8 {[%clk 00:09:27]} {[%emt 00:00:50]} 34. Bc1 {[%clk 00:11:15]}
{[%emt 00:01:20]} Ne6 {[%clk 00:09:05]} {[%emt 00:00:51]} 35. Bd2 {[%clk
00:09:28]} {[%emt 00:02:18]} Nf4+ {[%clk 00:09:23]} {[%emt 00:00:12]} 0-1